fUSD/lending_fUSD_20240104
["ID","MTS","AMOUNT","RATE_DAILY","PERIOD"]
[310140411,1704382281295,-588.15390164,0.00033972,2]
[310140412,1704382281305,-500.0,0.00033972,2]
[310140413,1704382281315,-929.72,0.00033972,2]
[310140414,1704382281325,-500.0,0.00033972,2]
[310140415,1704382281335,-883.66,0.00033972,2]
[310140416,1704382281345,-965.13,0.00033972,2]
[310140417,1704382281356,-994.63,0.00033972,2]
[310140418,1704382281366,-500.0,0.00033972,2]
[310140419,1704382281376,-500.0,0.00033972,2]
[310140420,1704382281386,-500.0,0.00033972,2]
[310140421,1704382281396,-500.0,0.00033972,2]
[310140422,1704382281406,-500.0,0.00033972,2]
[310140423,1704382281415,-500.0,0.00033972,2]
[310140424,1704382281425,-500.0,0.00033972,2]
[310140425,1704382281439,-500.0,0.00033972,2]
[310140426,1704382281448,-628.5,0.00033972,2]
[310140427,1704382281458,-500.0,0.00033972,2]
[310140428,1704382281468,-500.0,0.00033972,2]
[310140429,1704382281478,-1726.76,0.00033972,2]
[310140430,1704382281488,-592.9,0.00033972,2]
[310140431,1704382281498,-687.49,0.00033972,2]
[310140432,1704382281507,-1527.49,0.00033972,2]
[310140433,1704382281517,-1133.39,0.00033972,2]
[310140434,1704382281526,-500.0,0.00033972,2]
[310140435,1704382281536,-554.52,0.00033972,2]
[310140436,1704382281545,-875.83,0.00033972,2]
[310140437,1704382281554,-500.0,0.00033972,2]
[310140438,1704382281564,-500.0,0.00033972,2]
[310140439,1704382281574,-500.0,0.00033972,2]
[310140440,1704382281583,-569.21,0.00033972,2]
[310140441,1704382281593,-1481.3,0.00033972,2]
[310140442,1704382281602,-500.0,0.00033972,2]
[310140443,1704382281614,-500.0,0.00033972,2]
[310140444,1704382281625,-500.0,0.00033972,2]
[310140445,1704382281635,-500.0,0.00033972,2]
[310140446,1704382281644,-500.0,0.00033972,2]
[310140447,1704382281654,-500.0,0.00033972,2]
[310140448,1704382281664,-537.95,0.00033972,2]
[310140449,1704382281675,-500.0,0.00033972,2]
[310140450,1704382281687,-500.0,0.00033972,2]
[310140451,1704382281696,-500.0,0.00033972,2]
[310140452,1704382281706,-500.0,0.00033972,2]
[310140453,1704382281716,-697.47,0.00033972,2]
[310140454,1704382281727,-1165.76,0.00033972,2]
[310140455,1704382281736,-500.0,0.00033972,2]
[310140456,1704382281746,-647.93,0.00033972,2]
[310140457,1704382281756,-500.0,0.00033972,2]
[310140458,1704382281766,-500.0,0.00033972,2]
[310140459,1704382281776,-500.0,0.00033972,2]
[310140460,1704382281786,-500.0,0.00033972,2]
[310140461,1704382281796,-500.0,0.00033972,2]
[310140462,1704382281806,-500.0,0.00033972,2]
[310140463,1704382281816,-587.80111395,0.00033972,2]
[310140464,1704382281825,-633.29,0.00033972,2]
[310140465,1704382281835,-500.0,0.00033972,2]
[310140466,1704382281845,-754.99,0.00033972,2]
[310140467,1704382281855,-500.0,0.00033972,2]
[310140468,1704382281865,-1015.01,0.00033972,2]
[310140469,1704382281875,-516.74,0.00033972,2]
[310140470,1704382281885,-500.0,0.00033972,2]
[310140471,1704382281894,-562.47,0.00033972,2]
[310140472,1704382281904,-500.0,0.00033972,2]
[310140473,1704382281914,-4535.93,0.00033972,2]
[310140474,1704382281923,-500.0,0.00033972,2]
[310140475,1704382281934,-762.88,0.00033972,2]
[310140476,1704382281944,-500.0,0.00033972,2]
[310140477,1704382281954,-539.86,0.00033972,2]
[310140478,1704382281963,-500.0,0.00033972,2]
[310140479,1704382281973,-519.67,0.00033972,2]
[310140480,1704382281983,-724.5,0.00033972,2]
[310140481,1704382281992,-1690.95,0.00033972,2]
[310140482,1704382282002,-631.03,0.00033972,2]
[310140483,1704382282011,-618.43,0.00033972,2]
[310140484,1704382282021,-500.0,0.00033972,2]
[310140485,1704382282030,-500.0,0.00033972,2]
[310140486,1704382282040,-500.0,0.00033972,2]
[310140487,1704382282049,-830.76,0.00033972,2]
[310140488,1704382282059,-620.12,0.00033972,2]
[310140489,1704382282068,-500.0,0.00033972,2]
[310140490,1704382282077,-1847.57,0.00033972,2]
[310140491,1704382282251,-1480.66,0.00033972,2]
[310140492,1704382282262,-500.0,0.00033972,2]
[310140493,1704382282271,-874.34,0.00033972,2]
[310140494,1704382282282,-732.38,0.00033972,2]
[310140495,1704382282292,-1503.08,0.00033972,2]
[310140496,1704382282306,-605.40788225,0.00033972,2]
[310140497,1704382282316,-500.0,0.00033972,2]
[310140498,1704382282325,-3879.84,0.00033972,2]
[310140499,1704382282335,-500.0,0.00033972,2]
[310140500,1704382282346,-500.0,0.00033972,2]
[310140501,1704382282356,-885.0,0.00033972,2]
[310140502,1704382282366,-555.56,0.00033972,2]
[310140503,1704382282376,-500.0,0.00033972,2]
[310140504,1704382282385,-585.2,0.00033972,2]
[310140505,1704382282394,-1630.34,0.00033972,2]
[310140506,1704382282404,-500.0,0.00033972,2]
[310140507,1704382282413,-268.37233548,0.00033972,2]
[310140508,1704382282423,-520.84,0.00033972,2]
[310140509,1704382282434,-1323.63,0.00033972,2]
[310140510,1704382282444,-500.0,0.00033972,2]
[310140511,1704382282453,-1210.22,0.00033972,2]
[310140512,1704382282462,-1388.49,0.00033972,2]
[310140513,1704382282471,-500.0,0.00033972,2]
[310140514,1704382282480,-606.59,0.00033972,2]
[310140515,1704382282489,-500.0,0.00033972,2]
[310140516,1704382282498,-860.24,0.00033972,2]
[310140517,1704382282508,-839.12,0.00033972,2]
[310140518,1704382282517,-1370.12,0.00033972,2]
[310140519,1704382282527,-500.0,0.00033972,2]
[310140520,1704382282537,-500.0,0.00033972,2]
[310140521,1704382282546,-611.85,0.00033972,2]
[310140522,1704382282556,-500.0,0.00033972,2]
[310140523,1704382282566,-500.0,0.00033972,2]
[310140524,1704382282576,-500.0,0.00033972,2]
[310140525,1704382282585,-500.0,0.00033972,2]
[310140526,1704382282595,-500.0,0.00033972,2]
[310140527,1704382282604,-699.06,0.00033972,2]
[310140528,1704382282614,-1034.6,0.00033972,2]
[310140529,1704382282623,-500.0,0.00033972,2]
[310140530,1704382282634,-711.37,0.00033972,2]
[310140531,1704382282643,-500.0,0.00033972,2]
[310140532,1704382282653,-578.46,0.00033972,2]
[310140533,1704382282663,-713.02,0.00033972,2]
[310140534,1704382282672,-500.0,0.00033972,2]
[310140535,1704382282684,-245.88832907,0.00033972,2]
[310140536,1704382282693,-706.69,0.00033972,2]
[310140537,1704382282703,-500.0,0.00033972,2]
[310140538,1704382282712,-672.72,0.00033972,2]
[310140539,1704382282722,-1436.32,0.00033972,2]
[310140540,1704382282731,-705.58,0.00033972,2]
[310140541,1704382282741,-1790.4,0.00033972,2]
[310140542,1704382282751,-1244.42,0.00033972,2]
[310140543,1704382282761,-782.15,0.00033972,2]
[310140544,1704382282770,-500.0,0.00033972,2]
[310140545,1704382282780,-210.49652259,0.00033972,2]
[310140546,1704382282789,-500.0,0.00033972,2]
[310140547,1704382282798,-1157.16,0.00033972,2]
[310140548,1704382282807,-500.0,0.00033972,2]
[310140549,1704382282816,-500.0,0.00033972,2]
[310140550,1704382282826,-500.0,0.00033972,2]
[310140551,1704382282835,-500.0,0.00033972,2]
[310140552,1704382282846,-500.0,0.00033972,2]
[310140553,1704382282856,-757.58,0.00033972,2]
[310140554,1704382282866,-500.0,0.00033972,2]
[310140555,1704382282876,-500.0,0.00033972,2]
[310140556,1704382282886,-516.05,0.00033972,2]
[310140557,1704382282896,-500.0,0.00033972,2]
[310140558,1704382282907,-606.27,0.00033972,2]
[310140559,1704382282918,-500.0,0.00033972,2]
[310140560,1704382282930,-512.4311269,0.00033972,2]
[310140561,1704382282944,-450.05,0.00033972,2]
[310140562,1704382282955,-691.06,0.00033972,2]
[310140563,1704382282965,-500.0,0.00033972,2]
[310140564,1704382282975,-555.05,0.00033972,2]
[310140565,1704382282986,-1431.84,0.00033972,2]
[310140566,1704382282995,-554.8,0.00033972,2]
[310140567,1704382283006,-748.8,0.00033972,2]
[310140568,1704382283015,-570.72,0.00033972,2]
[310140569,1704382283025,-873.94,0.00033972,2]
[310140570,1704382283035,-500.0,0.00033972,2]
[310140571,1704382283045,-500.0,0.00033972,2]
[310140572,1704382283055,-500.0,0.00033972,2]
[310140573,1704382283066,-707.41,0.00033972,2]
[310140574,1704382283076,-500.0,0.00033972,2]
[310140575,1704382283086,-2418.62,0.00033972,2]
[310140576,1704382283096,-500.0,0.00033972,2]
[310140577,1704382283109,-724.39,0.00033972,2]
[310140578,1704382283119,-500.0,0.00033972,2]
[310140579,1704382283129,-589.67,0.00033972,2]
[310140580,1704382283138,-1587.4,0.00033972,2]
[310140581,1704382283149,-500.0,0.00033972,2]
[310140582,1704382283159,-956.51,0.00033972,2]
[310140583,1704382283169,-500.0,0.00033972,2]
[310140584,1704382283179,-500.0,0.00033972,2]
[310140585,1704382283189,-626.41,0.00033972,2]
[310140586,1704382283199,-791.2,0.00033972,2]
[310140587,1704382283209,-500.0,0.00033972,2]
[310140588,1704382283219,-532.07,0.00033972,2]
[310140589,1704382283228,-1976.95,0.00033972,2]
[310140590,1704382283238,-514.17,0.00033972,2]
[310140591,1704382283248,-500.0,0.00033972,2]
[310140592,1704382283258,-668.79,0.00033972,2]
[310140593,1704382283268,-500.0,0.00033972,2]
[310140594,1704382283278,-1044.33,0.00033972,2]
[310140595,1704382283288,-500.0,0.00033972,2]
[310140596,1704382283298,-1689.98,0.00033972,2]
[310140597,1704382283308,-500.0,0.00033972,2]
[310140598,1704382283318,-1159.3,0.00033972,2]
[310140599,1704382283328,-1455.69,0.00033972,2]
[310140600,1704382283338,-1409.52,0.00033972,2]
[310140601,1704382283348,-1012.12,0.00033972,2]
[310140602,1704382283358,-1781.64,0.00033972,2]
[310140603,1704382283368,-483.9920195,0.00033972,2]
[310140604,1704382283387,-566.85,0.00033972,2]
[310140605,1704382283408,-1654.3,0.00033972,2]
[310140606,1704382283424,-500.0,0.00033972,2]
[310140607,1704382283448,-712.84,0.00033972,2]
[310140608,1704382283469,-976.86,0.00033972,2]
[310140609,1704382283485,-500.0,0.00033972,2]
[310140610,1704382283503,-2479.73,0.00033972,2]
[310140611,1704382283522,-578.9,0.00033972,2]
[310140612,1704382283541,-1315.87,0.00033972,2]
[310140613,1704382283559,-500.0,0.00033972,2]
[310140614,1704382283576,-500.0,0.00033972,2]
[310140615,1704382283595,-1665.77,0.00033972,2]
[310140616,1704382283615,-682.59,0.00033972,2]
[310140617,1704382283627,-533.46,0.00033972,2]
[310140618,1704382283644,-582.57,0.00033972,2]
[310140619,1704382283662,-561.24,0.00033972,2]
[310140620,1704382283675,-500.0,0.00033972,2]
[310140621,1704382283695,-500.0,0.00033972,2]
[310140622,1704382283712,-1267.63,0.00033972,2]
[310140623,1704382283731,-500.0,0.00033972,2]
[310140624,1704382283748,-500.0,0.00033972,2]
[310140625,1704382283764,-500.0,0.00033972,2]
[310140626,1704382283781,-2243.16,0.00033972,2]
[310140627,1704382283797,-500.0,0.00033972,2]
[310140628,1704382283812,-500.0,0.00033972,2]
[310140629,1704382283827,-1087.48,0.00033972,2]
[310140630,1704382283844,-500.0,0.00033972,2]
[310140631,1704382283859,-2188.13,0.00033972,2]
[310140632,1704382283875,-631.64,0.00033972,2]
[310140633,1704382283891,-500.0,0.00033972,2]
[310140634,1704382283906,-883.44,0.00033972,2]
[310140635,1704382283922,-500.0,0.00033972,2]
[310140636,1704382283938,-500.0,0.00033972,2]
[310140637,1704382283953,-1775.65,0.00033972,2]
[310140638,1704382283968,-500.0,0.00033972,2]
[310140639,1704382283982,-500.0,0.00033972,2]
[310140640,1704382283996,-819.64,0.00033972,2]
[310140641,1704382284011,-500.0,0.00033972,2]
[310140642,1704382284026,-500.0,0.00033972,2]
[310140643,1704382284041,-592.03,0.00033972,2]
[310140644,1704382284057,-3373.35,0.00033972,2]
[310140645,1704382284074,-500.0,0.00033972,2]
[310140646,1704382284090,-1298.54,0.00033972,2]
[310140647,1704382284105,-1586.34,0.00033972,2]
[310140648,1704382284120,-780.13,0.00033972,2]
[310140649,1704382284136,-500.0,0.00033972,2]
[310140650,1704382284153,-518.46,0.00033972,2]
[310140651,1704382284169,-707.26,0.00033972,2]
[310140652,1704382284187,-500.0,0.00033972,2]
[310140653,1704382284204,-526.5,0.00033972,2]
[310140654,1704382284220,-1324.36,0.00033972,2]
[310140655,1704382284236,-646.65,0.00033972,2]
[310140656,1704382284252,-2219.77,0.00033972,2]
[310140657,1704382284268,-500.0,0.00033972,2]
[310140658,1704382284284,-500.0,0.00033972,2]
[310140659,1704382284302,-193.87946531,0.00033972,2]
[310140660,1704382284318,-989.6,0.00033972,2]
[310140661,1704382284335,-1339.39,0.00033972,2]
[310140662,1704382284353,-500.0,0.00033972,2]
[310140663,1704382284369,-653.7,0.00033972,2]
[310140664,1704382284385,-500.0,0.00033972,2]
[310140665,1704382284401,-519.6,0.00033972,2]
[310140666,1704382284416,-1065.67,0.00033972,2]
[310140667,1704382284438,-500.0,0.00033972,2]
[310140668,1704382284454,-183.31908102,0.00033972,2]
[310140669,1704382284471,-382.51932584,0.00033972,2]
[310140670,1704382284487,-500.0,0.00033972,2]
[310140671,1704382284503,-500.0,0.00033972,2]
[310140672,1704382284521,-2055.5,0.00033972,2]
[310140673,1704382284536,-500.0,0.00033972,2]
[310140674,1704382284551,-500.0,0.00033972,2]
[310140675,1704382284565,-500.0,0.00033972,2]
[310140676,1704382284580,-500.0,0.00033972,2]
[310140677,1704382284594,-555.27,0.00033972,2]
[310140678,1704382284610,-500.0,0.00033972,2]
[310140679,1704382284625,-500.0,0.00033972,2]
[310140680,1704382284640,-500.0,0.00033972,2]
[310140681,1704382284655,-500.0,0.00033972,2]
[310140682,1704382284670,-1338.92,0.00033972,2]
[310140683,1704382284684,-500.0,0.00033972,2]
[310140684,1704382284699,-500.0,0.00033972,2]
[310140685,1704382284714,-555.52,0.00033972,2]
[310140686,1704382284728,-500.0,0.00033972,2]
[310140687,1704382284743,-500.0,0.00033972,2]
[310140688,1704382284757,-500.0,0.00033972,2]
[310140689,1704382284772,-570.54,0.00033972,2]
[310140690,1704382284786,-3232.69,0.00033972,2]
[310140691,1704382284801,-2189.05,0.00033972,2]
[310140692,1704382284816,-759.52,0.00033972,2]
[310140693,1704382284831,-500.0,0.00033972,2]
[310140694,1704382284846,-500.0,0.00033972,2]
[310140695,1704382284860,-817.65,0.00033972,2]
[310140696,1704382284875,-500.0,0.00033972,2]
[310140697,1704382284889,-500.0,0.00033972,2]
[310140698,1704382284903,-1722.33,0.00033972,2]
[310140699,1704382284918,-2425.11,0.00033972,2]
[310140700,1704382284934,-828.07,0.00033972,2]
[310140701,1704382284948,-1223.54,0.00033972,2]
[310140702,1704382284963,-1456.98,0.00033972,2]
[310140703,1704382284978,-500.0,0.00033972,2]
[310140704,1704382284994,-583.33,0.00033972,2]
[310140705,1704382285009,-1177.67,0.00033972,2]
[310140706,1704382285024,-500.0,0.00033972,2]
[310140707,1704382285040,-875.56,0.00033972,2]
[310140708,1704382285057,-500.0,0.00033972,2]
[310140709,1704382285075,-500.0,0.00033972,2]
[310140710,1704382285092,-500.0,0.00033972,2]
[310140711,1704382285109,-500.0,0.00033972,2]
[310140712,1704382285125,-500.0,0.00033972,2]
[310140713,1704382285141,-2227.49,0.00033972,2]
[310140714,1704382285158,-500.0,0.00033972,2]
[310140715,1704382285174,-500.0,0.00033972,2]
[310140716,1704382285192,-1518.35,0.00033972,2]
[310140717,1704382285208,-500.0,0.00033972,2]
[310140718,1704382285224,-750.06,0.00033972,2]
[310140719,1704382285449,-820.93,0.00033972,2]
[310140720,1704382285459,-500.0,0.00033972,2]
[310140721,1704382285469,-500.0,0.00033972,2]
[310140722,1704382285480,-500.0,0.00033972,2]
[310140723,1704382285490,-500.0,0.00033972,2]
[310140724,1704382285502,-500.0,0.00033972,2]
[310140725,1704382285511,-500.0,0.00033972,2]
[310140726,1704382285521,-500.0,0.00033972,2]
[310140727,1704382285530,-563.99,0.00033972,2]
[310140728,1704382285539,-553.89,0.00033972,2]
[310140729,1704382285548,-1394.22,0.00033972,2]
[310140730,1704382285558,-500.0,0.00033972,2]
[310140731,1704382285567,-500.0,0.00033972,2]
[310140732,1704382285577,-1421.63,0.00033972,2]
[310140733,1704382285587,-500.0,0.00033972,2]
[310140734,1704382285597,-500.0,0.00033972,2]
[310140735,1704382285608,-2931.05,0.00033972,2]
[310140736,1704382285618,-256.96429481,0.00033972,2]
[310140737,1704382285628,-500.0,0.00033972,2]
[310140738,1704382285639,-1128.24,0.00033972,2]
[310140739,1704382285648,-534.18,0.00033972,2]
[310140740,1704382285658,-500.0,0.00033972,2]
[310140741,1704382285668,-500.0,0.00033972,2]
[310140742,1704382285678,-500.0,0.00033972,2]
[310140743,1704382285691,-500.0,0.00033972,2]
[310140744,1704382285701,-500.0,0.00033972,2]
[310140745,1704382285712,-990.25,0.00033972,2]
[310140746,1704382285722,-500.0,0.00033972,2]
[310140747,1704382285733,-500.0,0.00033972,2]
[310140748,1704382285743,-150.0,0.00033972,2]
[310140749,1704382285752,-1440.48,0.00033972,2]
[310140750,1704382285762,-618.51,0.00033972,2]
[310140751,1704382285772,-500.0,0.00033972,2]
[310140752,1704382285782,-500.0,0.00033972,2]
[310140753,1704382285792,-500.0,0.00033972,2]
[310140754,1704382285801,-500.0,0.00033972,2]
[310140755,1704382285811,-1720.17,0.00033972,2]
[310140756,1704382285821,-500.0,0.00033972,2]
[310140757,1704382285831,-500.0,0.00033972,2]
[310140758,1704382285840,-500.0,0.00033972,2]
[310140759,1704382285850,-1631.87,0.00033972,2]
[310140760,1704382285859,-500.0,0.00033972,2]
[310140761,1704382285869,-500.0,0.00033972,2]
[310140762,1704382285879,-500.0,0.00033972,2]
[310140763,1704382285888,-500.0,0.00033972,2]
[310140764,1704382285898,-1063.03,0.00033972,2]
[310140765,1704382285908,-500.0,0.00033972,2]
[310140766,1704382285917,-920.52,0.00033972,2]
[310140767,1704382285927,-8858.93,0.00033972,2]
[310140768,1704382285938,-500.0,0.00033972,2]
[310140769,1704382285948,-647.69,0.00033972,2]
[310140770,1704382285957,-500.0,0.00033972,2]
[310140771,1704382285967,-719.66,0.00033972,2]
[310140772,1704382285977,-500.0,0.00033972,2]
[310140773,1704382285987,-1265.99,0.00033972,2]
[310140774,1704382285997,-1937.0,0.00033972,2]
[310140775,1704382286006,-500.0,0.00033972,2]
[310140776,1704382286015,-804.42,0.00033972,2]
[310140777,1704382286025,-500.0,0.00033972,2]
[310140778,1704382286035,-500.0,0.00033972,2]
[310140779,1704382286044,-500.0,0.00033972,2]
[310140780,1704382286054,-598.04,0.00033972,2]
[310140781,1704382286064,-500.0,0.00033972,2]
[310140782,1704382286073,-486.1311731,0.00033972,2]
[310140783,1704382286739,-167.2288269,0.00033972,2]
[310140784,1704382286750,-500.0,0.00033972,2]
[310140785,1704382286759,-500.0,0.00033972,2]
[310140786,1704382286770,-500.0,0.00033972,2]
[310140787,1704382286780,-500.0,0.00033972,2]
[310140788,1704382286790,-604.31,0.00033972,2]
[310140789,1704382286800,-1783.17,0.00033972,2]
[310140790,1704382286810,-779.23,0.00033972,2]
[310140791,1704382286820,-511.12,0.00033972,2]
[310140792,1704382286830,-500.0,0.00033972,2]
[310140793,1704382286839,-749.48,0.00033972,2]
[310140794,1704382286849,-1280.78,0.00033972,2]
[310140795,1704382286859,-5912.23,0.00033972,2]
[310140796,1704382286869,-255.47660688,0.00033972,2]
[310140797,1704382286879,-500.0,0.00033972,2]
[310140798,1704382286888,-6138.42,0.00033972,2]
[310140799,1704382286899,-500.0,0.00033972,2]
[310140800,1704382286909,-757.3,0.00033972,2]
[310140801,1704382286919,-500.0,0.00033972,2]
[310140802,1704382286929,-784.27,0.00033972,2]
[310140803,1704382286942,-500.0,0.00033972,2]
[310140804,1704382286951,-500.0,0.00033972,2]
[310140805,1704382286961,-709.85,0.00033972,2]
[310140806,1704382286971,-500.0,0.00033972,2]
[310140807,1704382286982,-865.14,0.00033972,2]
[310140808,1704382286991,-500.0,0.00033972,2]
[310140809,1704382287001,-500.0,0.00033972,2]
[310140810,1704382287010,-600.20510728,0.00033972,2]
[310140811,1704382287020,-836.11,0.00033972,2]
[310140812,1704382287029,-500.0,0.00033972,2]
[310140813,1704382287039,-754.71,0.00033972,2]
[310140814,1704382287049,-1180.91,0.00033972,2]
[310140815,1704382287058,-3517.98,0.00033972,2]
[310140816,1704382287068,-500.0,0.00033972,2]
[310140817,1704382287078,-500.0,0.00033972,2]
[310140818,1704382287087,-1029.25,0.00033972,2]
[310140819,1704382287097,-846.77061104,0.00033972,2]
[310140820,1704382287472,-500.0,0.00032876,2]
[310140821,1704382287483,-500.0,0.0003315,2]
[310140822,1704382287492,-500.0,0.00033424,2]
[310140823,1704382287502,-297.32938896,0.00033972,2]
[310140824,1704382287512,-311.97287949,0.00033972,2]
[310140825,1704382287524,-188.02712051,0.00033972,2]
[310140826,1704382287534,-1067.31144558,0.00033972,2]
[310140827,1704382287555,-500.0,0.00033698,2]
[310140828,1704382287566,-1632.28855442,0.00033972,2]
[310140829,1704382287779,-500.0,0.00033972,2]
[310140830,1704382287790,-1703.14,0.00033972,2]
[310140831,1704382287800,-345.3769439,0.00033972,2]
[310140832,1704382287811,-734.04,0.00033972,2]
[310140833,1704382287821,-1594.68,0.00033972,2]
[310140834,1704382287830,-786.52,0.00033972,2]
[310140835,1704382287841,-984.67108208,0.00033972,2]
[310140836,1704382287858,-396.5984837,0.00033972,2]
[310140837,1704382287869,-221.00043422,0.00033972,2]
[310140838,1704382287879,-500.0,0.00033972,2]
[310140839,1704382287889,-500.0,0.00033972,2]
[310140840,1704382287899,-500.0,0.00033972,2]
[310140841,1704382287912,-1302.09,0.00033972,2]
[310140842,1704382287922,-461.44389839,0.00033972,2]
[310140843,1704382287934,-310.86610161,0.00033972,2]
[310140844,1704382287946,-805.84,0.00033972,2]
[310140845,1704382287956,-500.0,0.00033972,2]
[310140846,1704382287966,-500.0,0.00033972,2]
[310140847,1704382287980,-500.0,0.00033972,2]
[310140848,1704382287990,-1641.84,0.00033972,2]
[310140849,1704382288001,-4055.91,0.00033972,2]
[310140850,1704382288011,-500.0,0.00033972,2]
[310140851,1704382288021,-500.0,0.00033972,2]
[310140852,1704382288032,-500.0,0.00033972,2]
[310140853,1704382288041,-668.58,0.00033972,2]
[310140854,1704382288051,-3237.39,0.00033972,2]
[310140855,1704382288061,-892.93,0.00033972,2]
[310140856,1704382288071,-500.0,0.00033972,2]
[310140857,1704382288080,-2859.43,0.00033972,2]
[310140858,1704382288090,-500.0,0.00033972,2]
[310140859,1704382288099,-500.0,0.00033972,2]
[310140860,1704382288110,-500.0,0.00033972,2]
[310140861,1704382288119,-500.0,0.00033972,2]
[310140862,1704382288129,-2012.37,0.00033972,2]
[310140863,1704382288139,-500.0,0.00033972,2]
[310140864,1704382288149,-582.46,0.00033972,2]
[310140865,1704382288159,-500.0,0.00033972,2]
[310140866,1704382288171,-2106.83,0.00033972,2]
[310140867,1704382288181,-8847.8,0.00033972,2]
[310140868,1704382288197,-797.8,0.00033972,2]
[310140869,1704382288207,-500.0,0.00033972,2]
[310140870,1704382288216,-1629.73,0.00033972,2]
[310140871,1704382288226,-500.0,0.00033972,2]
[310140872,1704382288235,-732.92,0.00033972,2]
[310140873,1704382288244,-1031.75,0.00033972,2]
[310140874,1704382288254,-1632.82,0.00033972,2]
[310140875,1704382288264,-819.74,0.00033972,2]
[310140876,1704382288274,-1000.0,0.00033972,2]
[310140877,1704382288284,-500.0,0.00033972,2]
[310140878,1704382288293,-1373.53,0.00033972,2]
[310140879,1704382288305,-1158.83,0.00033972,2]
[310140880,1704382288315,-2495.12,0.00033972,2]
[310140881,1704382288324,-21046.71981304,0.00033972,2]
[310140882,1704382288353,-393.9749995,0.00033972,2]
[310140883,1704382288364,-633.62285639,0.00033972,2]
[310140884,1704382288394,-359.1,0.00033972,2]
[310140885,1704382288480,-1136.05,0.00033972,2]
[310140886,1704382288492,-478.43660576,0.00033972,2]
[310140887,1704382288504,-30879.58937393,0.00033972,2]
[310140888,1704382289245,-424.0,0.00032321,2]
[310140889,1704382289255,-751.001,0.00032321,2]
[310140890,1704382289265,-184.317,0.00032321,2]
[310140891,1704382289275,-154.56836738,0.00032776,4]
[310140892,1704382289284,-500.0,0.00032876,2]
[310140893,1704382289293,-500.0,0.0003315,2]
[310140894,1704382289303,-187.03825944,0.00033424,2]
[310140895,1704382289313,-4659.07537318,0.00033972,2]
[310140896,1704382289325,-438.93,0.00033972,2]
[310140897,1704382289336,-514.95000035,0.00033972,2]
[310140898,1704382289348,-20.07097785,0.00033972,2]
[310140899,1704382289358,-500.0,0.00033972,2]
[310140900,1704382289368,-162.12902214,0.00033972,2]
[310140901,1704382289380,-640.23097786,0.00033972,2]
[310140902,1704382289389,-500.0,0.00033972,2]
[310140903,1704382289398,-500.0,0.00033972,2]
[310140904,1704382289408,-1226.79,0.00033972,2]
[310140905,1704382289417,-758.9,0.00033972,2]
[310140906,1704382289427,-11320.09,0.00033972,2]
[310140907,1704382289436,-923.61,0.00033972,2]
[310140908,1704382289447,-957.74,0.00033972,2]
[310140909,1704382289457,-2795.79,0.00033972,2]
[310140910,1704382289471,-559.57,0.00033972,2]